lending/lending_fUSD_20250406
["ID","MTS","AMOUNT","RATE_DAILY","PERIOD"]
[357241188,1743930129496,151.0,0.00044484,30]
[357241189,1743930130782,151.0,0.00044484,30]
[357241190,1743930131513,151.0,0.00044484,30]
[357241191,1743930132163,151.0,0.00044484,30]
[357241192,1743930132830,151.0,0.00044484,30]
[357241193,1743930133454,151.0,0.00044484,30]
[357241194,1743930134092,151.0,0.00044484,30]
[357241195,1743930134768,151.0,0.00044484,30]
[357241196,1743930135395,151.0,0.00044484,30]
[357241197,1743930136607,151.0,0.00044484,30]
[357241198,1743930137292,151.0,0.00044484,30]
[357241199,1743930137940,151.0,0.00044484,30]
[357241201,1743930138571,151.0,0.00044484,30]
[357241202,1743930139228,151.0,0.00044484,30]
[357241203,1743930142816,151.0,0.00044484,30]
[357241204,1743930143466,156.587,0.00044484,30]
[357241205,1743930144315,162.380719,0.00044484,30]
[357241206,1743930144961,168.3888056,0.00044484,30]
[357241207,1743930145604,174.61919141,0.00044484,30]
[357241208,1743930146222,181.08010149,0.00044484,30]
[357241209,1743930146950,187.78006525,0.00044484,30]
[357241210,1743930147563,194.72792766,0.00044484,30]
[357241211,1743930148242,201.93286099,0.00044484,30]
[357241212,1743930148882,209.40437684,0.00044484,30]
[357241213,1743930149499,209.40437684,0.00044484,30]
[357241214,1743930152995,500.0,0.00044484,30]
[357241215,1743930153502,518.5,0.00044484,30]
[357241216,1743930154231,537.6845,0.00044484,30]
[357241217,1743930154865,557.5788265,0.00044484,30]
[357241218,1743930155654,578.20924308,0.00044484,30]
[357241219,1743930156186,599.60298507,0.00044484,30]
[357241220,1743930156800,621.78829552,0.00044484,30]
[357241221,1743930157455,644.79446246,0.00044484,30]
[357241222,1743930158165,668.65185757,0.00044484,30]
[357241224,1743930158790,693.3919763,0.00044484,30]
[357241225,1743930159431,719.04747942,0.00044484,30]
[357241226,1743930160096,745.65223616,0.00044484,30]
[357241227,1743930160798,773.2413689,0.00044484,30]
[357241228,1743930161470,801.85129955,0.00044484,30]
[357241229,1743930162117,831.51979763,0.00044484,30]
[357241230,1743930162941,862.28603014,0.00044484,30]
[357241231,1743930163442,894.19061326,0.00044484,30]
[357241232,1743930164084,927.27566595,0.00044484,30]
[357241233,1743930165038,961.58486559,0.00044484,30]
[357241234,1743930166314,961.58486559,0.00044484,30]
[357241239,1743930182717,-165.6138,0.00035,30]
[357241240,1743930182742,-158.91478767,0.00035009,2]
[357241241,1743930182767,-539.78119099,0.0003501,2]
[357241242,1743930182790,-242.6960729,0.0003501,2]
[357241243,1743930182814,-170.0,0.000351,120]
[357241244,1743930182838,-148610.786072,0.000351,2]
[357241245,1743930182861,-529.75597472,0.000351,2]
[357241246,1743930182886,-150.0,0.00035109,2]
[357241247,1743930182912,-971444.56995398,0.0003511,30]
[357241267,1743930427083,-209.37865928,0.00035,7]
[357241268,1743930427105,-1.37555515,0.0003501,2]
[357241269,1743930428122,-157.5392325,0.0003501,2]
[357241270,1743930428142,-508.39526288,0.0003511,30]
[357241271,1743930445096,-280.88262455,0.0003511,30]
[357241274,1743930547088,-1147.611948,0.0003511,30]
[357241275,1743930549147,-6299.030654,0.0003511,30]
[357241276,1743930551273,-142331.62740885,0.0003511,30]
[357241277,1743930551295,-187.86193801,0.0003511,2]
[357241278,1743930551316,-480.95,0.00035651,2]
[357241279,1743930551337,-2495.36643127,0.0003593,7]
[357241280,1743930551358,-150.0,0.00036479,2]
[357241281,1743930551380,-755.236,0.00036486,45]
[357241282,1743930551401,-250.0,0.00036614,2]
[357241283,1743930551421,-150.0,0.00036657,7]
[357241284,1743930551442,-257.56,0.00036762,2]
[357241285,1743930551464,-1281.78,0.00036786,120]
[357241286,1743930551485,-309.39,0.00036797,3]
[357241287,1743930551507,-150.0,0.00036903,2]
[357241288,1743930551529,-23900.0,0.00036968,2]
[357241289,1743930551550,-150.01,0.00037069,2]
[357241290,1743930551572,-1000.0,0.00037076,2]
[357241291,1743930551598,-1916.8704602,0.000372,103]
[357241292,1743930551619,-2385.78,0.00037564,2]
[357241293,1743930551639,-245.49401585,0.00037849,2]
[357241294,1743930551661,-500.0,0.00037885,7]
[357241295,1743930551682,-480.95,0.00037915,2]
[357241296,1743930551703,-250.0,0.0003847,2]
[357241297,1743930551724,-151.0,0.00038977,30]
[357241298,1743930551870,-151.0,0.00038977,30]
[357241299,1743930551893,-151.0,0.00038977,30]
[357241300,1743930551914,-151.0,0.00038977,30]
[357241301,1743930551934,-151.0,0.00038977,30]
[357241302,1743930551955,-151.0,0.00038977,30]
[357241303,1743930551975,-151.0,0.00038977,30]
[357241304,1743930551994,-151.33990958,0.00038977,30]
[357241305,1743930552015,-500.0,0.00038977,30]
[357241306,1743930552035,-518.5,0.00038977,30]
[357241307,1743930552055,-537.6845,0.00038977,30]
[357241308,1743930552076,-557.5788265,0.00038977,30]
[357241309,1743930552097,-578.20924308,0.00038977,30]
[357241310,1743930552117,-599.60298507,0.00038977,30]
[357241311,1743930552138,-621.78829552,0.00038977,30]
[357241312,1743930552159,-644.79446246,0.00038977,30]
[357241313,1743930552180,-668.65185757,0.00038977,30]
[357241314,1743930552200,-693.3919763,0.00038977,30]
[357241315,1743930552221,-719.04747942,0.00038977,30]
[357241316,1743930552243,-180.28964669,0.00038977,30]
[357241317,1743930557105,-565.36258947,0.00038977,30]
[357241318,1743930557126,-773.2413689,0.00038977,30]
[357241319,1743930557146,-650.00410363,0.00038977,30]
[357241320,1743930572221,-151.84719592,0.00038977,30]
[357241321,1743930572241,-831.51979763,0.00038977,30]
[357241322,1743930572262,-862.28603014,0.00038977,30]
[357241323,1743930572282,-894.19061326,0.00038977,30]
[357241324,1743930572302,-927.27566595,0.00038977,30]
[357241325,1743930572321,-729.8485591,0.00038977,30]
[357241346,1743930632116,-233.59,0.00026849,2]
[357241347,1743930632126,-233.59,0.00032646,2]
[357241348,1743930632135,-233.59,0.00038443,2]
[357241349,1743930632144,-1367.97253586,0.00038976,3]
[357241527,1743930637926,-1068.37566828,0.00038976,3]
[357241562,1743930642970,-908.4075,0.00038976,3]
[357241563,1743930643052,-7230.66872995,0.00038976,3]
[357241564,1743930643062,-689.26538847,0.00038976,20]
[357241565,1743930643072,-1047.20956727,0.00038976,3]
[357241566,1743930643103,-10815.18026544,0.00038976,3]
[357241567,1743930643115,-1813.1529244,0.00038976,3]
[357241568,1743930643127,-1146.72545176,0.00038976,3]
[357241569,1743930643136,-1884.09658284,0.00038976,7]
[357241570,1743930643146,-2045.96538366,0.00038976,3]
[357241571,1743930643155,-18535.13224648,0.00038976,3]
[357241572,1743930643165,-297.37407019,0.00038976,2]
[357241573,1743930643175,-231.73630649,0.00038977,30]
[357241574,1743930643184,-1500.0,0.00038977,30]
[357241575,1743930643194,-500.0,0.00039018,7]
[357241576,1743930643203,-489.70952358,0.000392,2]
[357241577,1743930643213,-500.0,0.00039755,7]
[357241578,1743930643222,-485.8030719,0.000399,15]
[357241579,1743930643232,-38699.12434202,0.0003999,3]
[357241585,1743930643755,-2406.70538046,0.0003999,3]
[357241586,1743930643767,-2174.13,0.0003999,3]
[357241587,1743930643777,-1338.26696788,0.0003999,3]
[357241588,1743930643805,-971.4300002,0.0003999,3]
[357241604,1743930645959,-524.9170151,0.0003999,3]
[357241622,1743930646278,-531.75283115,0.0003999,3]
[357241623,1743930646358,-23.41713488,0.0003999,3]
[357241632,1743930780005,250.5871632,0.00038976,120]
[357241637,1743930837095,500.0,0.00033,120]
[357241638,1743930881012,500.0,0.00033,120]
[357241639,1743930885945,1000.0,0.00038975,30]
[357241640,1743930958024,500.0,0.00038975,30]
[357241641,1743930994671,300.0,0.00038975,30]
[357241644,1743931410710,555.19774861,0.00038971,30]
[357241645,1743931528722,611.53999999,0.00038971,120]
[357241646,1743931555851,174.14450726,6.94e-05,2]
[357241647,1743931571657,611.54,0.00038971,120]
[357241648,1743931602523,611.54,0.00038971,120]
[357241649,1743931618187,611.54,0.00038971,120]
[357241650,1743931639395,205.0,9.8e-05,2]
[357241651,1743931698176,9921.03784386,0.0001439,2]
[357241657,1743931726581,605.52583736,0.00038971,120]
[357241658,1743931729724,48489.62152251,0.00013368,2]
[357241663,1743931751112,-1000.0,0.0001902,2]
[357241664,1743931751131,-917.713196,0.0001987,2]
[357241665,1743931753383,-520.43041152,0.000198,2]
[357241666,1743931753405,-2105.43279068,0.0001987,2]
[357241667,1743931753427,-177.34843403,0.000199,2]
[357241668,1743931753451,-77813.35692556,0.0002,2]
[357241669,1743931761111,-65720.26686143,0.0002,2]
[357241670,1743931765246,-33587.84092861,0.0002,2]
[357241671,1743931767321,-237056.07794309,0.0002,2]
[357241672,1743931770368,-43454.19666,0.0002,2]
[357241678,1743931832266,-198.24806144,0.000199,2]
[357241679,1743931832276,-482.3450452,0.00019973,2]
[357241689,1743931832640,611.54,0.00038971,120]
[357241690,1743931838055,-20.00059185,0.00019973,2]
[357241691,1743931838065,-563.95825175,0.0002,2]
[357241729,1743931843486,-124.1831279,0.0002,2]
[357241730,1743931844779,917.28999999,0.00038971,120]
[357241731,1743931846367,-1792.1712988,0.0002,2]
[357241789,1743931863276,509.61,0.00038971,120]
[357241790,1743931964157,250.0,0.00038971,120]
[357241791,1743931990519,509.61,0.00038979,120]
[357241792,1743932176374,1192.07,0.00032932,120]
[357241793,1743932545981,182.80945919,0.00038978,120]
[357241794,1743932559907,1000.0,0.00038978,120]
[357241795,1743932569510,500.0,0.00038978,120]
[357241796,1743932592812,500.0,0.00038978,120]
[357241797,1743932613531,390.0,0.00038978,120]
[357241798,1743932695810,-250.0,0.00019,2]
[357241799,1743932695834,-604.189,0.000196,2]
[357241800,1743932695859,-300.0,0.00019899,2]
[357241801,1743932695882,-3541.60098725,0.000199,2]
[357241802,1743932695905,-517.54546964,0.000199,2]
[357241803,1743932695932,-545.54455733,0.000199,2]
[357241804,1743932695955,-198.24806143,0.000199,2]
[357241805,1743932695978,-250.0,0.00019936,2]
[357241806,1743932696001,-315.74404959,0.00019973,2]
[357241807,1743932696023,-160.26673249,0.00019973,2]
[357241808,1743932696045,-153.87805346,0.00019973,2]
[357241809,1743932696070,-2993162.98308881,0.0002,2]
[357241810,1743932698245,1000.0,0.00038978,120]
[357241812,1743932747118,-208.02520536,0.000199,2]
[357241813,1743932747142,-409.16813787,0.0002,2]
[357241814,1743932753255,-1207.1814352,0.0002,2]
[357241815,1743932827113,-480.4170227,0.0001981,2]
[357241816,1743932827133,-321.73832356,0.000199,2]
[357241817,1743932827153,-200.7624805,0.00019999,2]
[357241818,1743932827176,-201.5475543,0.00019999,2]
[357241819,1743932827199,-3250.53000335,0.0002,2]
[357241820,1743932841546,-1560.93021635,0.0002,2]
[357241821,1743932841773,-7692.71568042,0.0002,2]
[357241822,1743932852119,-200.0,0.000197,7]
[357241823,1743932852139,-140.22035178,0.000198,7]
[357241825,1743932945110,-359.77964822,0.000198,7]
[357241826,1743932945131,-700.0,0.000199,7]
[357241827,1743932945151,-168.49891184,0.000199,2]
[357241828,1743932945173,-292.1589665,0.000199,2]
[357241829,1743932945197,-4404.60577826,0.000199,2]
[357241830,1743932945217,-391.45272576,0.000199,2]
[357241831,1743932961079,-154.09183157,0.000199,2]
[357241832,1743932961102,-34272.49038789,0.0002,2]
[357241833,1743932963077,-30739.62276,0.0002,2]
[357241834,1743932964119,-4396.971096,0.0002,2]
[357241835,1743932972074,-16670.00027775,0.0002,2]
[357241836,1743932973075,-24578.9635,0.0002,2]
[357241837,1743932990797,150.0,0.00038961,30]
[357241838,1743933024754,163.73542163,0.00038961,30]
[357241915,1743933038365,-134.13127074,0.000199,2]
[357241921,1743933040499,-347.59457901,0.000199,2]
[357241922,1743933040509,-178.0947312,0.000199,2]
[357241923,1743933040519,-205.37304937,0.0002,2]
[357241924,1743933040530,-289.90689427,0.0002,2]
[357241937,1743933046361,-7547.88314444,0.0002,2]
[357241938,1743933046429,-138.46802761,0.0002,2]
[357241939,1743933247814,228.984237,7.945e-05,2]
[357241940,1743933344885,1092.73,0.00032932,120]
[357241941,1743933460982,439.99999999,0.0003896,120]
[357241942,1743933488934,2500.0,0.00038961,120]
[357241943,1743933806855,1370.13731685,0.00038961,120]
[357241944,1743933813864,1102.57904623,0.00038961,120]
[357241945,1743933822791,499.99999999,0.00038961,120]
[357241946,1743933830931,499.99999999,0.00038961,120]
[357241947,1743933856103,500.00000001,0.00038961,120]
[357241949,1743933874659,1000.0,0.00038961,120]
[357241950,1743933901339,500.0,0.00038961,120]
[357241951,1743933920344,500.0,0.00038961,120]
[357241952,1743933950111,-631.855,0.000196,2]
[357241953,1743933950134,-163.37199918,0.000199,2]
[357241954,1743933950155,-545.54455733,0.000199,2]
[357241955,1743933950176,-28242.49667753,0.000199,2]
[357241956,1743933962917,500.00000002,0.00038961,120]
[357241957,1743933990895,500.0,0.00038961,120]
[357241958,1743934033075,-300.0,0.00019899,2]
[357241959,1743934033096,-22124.70189639,0.000199,2]
[357241960,1743934033118,-487.53138391,0.000199,2]
[357241961,1743934033137,-38510.77,0.00019999,2]
[357241962,1743934033158,-10164.76633039,0.00019999,5]
[357241963,1743934033181,-2777.26410415,0.0002,2]
[357241964,1743934038080,-769.27357537,0.0002,2]
[357241965,1743934041089,-632.4199225,0.0002,2]
[357241966,1743934041121,-753.39479858,0.0002,2]
[357241976,1743934155155,-212.97818642,0.000199,2]
[357241977,1743934155177,-4874.80176958,0.0002,2]
[357241979,1743934160080,-305.84996944,0.0002,2]
[357241980,1743934161109,-168052.11955265,0.0002,2]
[357241981,1743934170125,-40812.49807645,0.0002,2]
[357241982,1743934172104,-4974.06940391,0.0002,2]
[357241987,1743934231789,-331.795224,0.0002,2]
[357242026,1743934232174,-1625639.73007123,0.0002,2]
[357242028,1743934232183,-6281.9006532,0.0002,2]
[357242030,1743934232193,-769.21511647,0.0002,4]
[357242032,1743934232202,-187.88072421,0.0002,2]
[357242034,1743934232211,-152.65,0.0002,2]
[357242036,1743934232220,-564.08,0.00020746,2]
[357242038,1743934232229,-300.0,0.00021,2]
[357242040,1743934232239,-150.0,0.00021917,2]
[357242042,1743934232248,-250.0,0.00022,2]
[357242044,1743934232256,-23900.0,0.00022566,2]
[357242046,1743934232265,-282.8,0.00022605,2]
[357242048,1743934232275,-1081.05,0.000227,2]
[357242050,1743934232283,-5000.01,0.00022727,2]
[357242052,1743934232293,-2776.14,0.00022769,2]
[357242054,1743934232302,-4697.43,0.00022771,2]
[357242056,1743934232311,-1182.86,0.00022796,2]
[357242058,1743934232320,-827.01,0.00022812,2]
[357242060,1743934232329,-200.0,0.00022832,2]
[357242061,1743934232338,-350.0,0.00023,2]
[357242063,1743934232347,-564.08,0.0002301,2]
[357242064,1743934232356,-245.49401585,0.00023287,2]
[357242065,1743934232365,-184.58,0.00023309,2]
[357242066,1743934232374,-250.0,0.00023463,2]
[357242067,1743934232383,-737.9,0.00023467,2]
[357242068,1743934232393,-150.0,0.00023477,7]
[357242069,1743934232402,-487.53138383,0.00023566,2]
[357242070,1743934232411,-2456.51,0.00023579,2]
[357242071,1743934232420,-50367.19857383,0.00023766,2]
[357242072,1743934232429,-176.48,0.00023836,2]
[357242073,1743934232438,-1000.0,0.00023977,2]
[357242074,1743934232448,-237.67,0.0002403,2]
[357242075,1743934232457,-166.71,0.00024401,2]
[357242076,1743934232466,-500.32262048,0.00024773,2]
[357242077,1743934232475,-500.0,0.00024773,2]
[357242078,1743934232484,-268.88405971,0.00024773,2]
[357242079,1743934232494,-76829.42931305,0.000248,2]
[357242080,1743934232508,-18997.39523672,0.000248,2]
[357242081,1743934232521,-58358.74875423,0.000248,2]
[357242082,1743934232534,-133764.843311,0.000248,2]
[357242083,1743934232543,-127060.03502339,0.000249,2]
[357242084,1743934232557,-134185.57651961,0.000249,2]
[357242085,1743934232566,-400.0,0.00025,2]
[357242086,1743934232575,-564.08,0.00025274,2]
[357242087,1743934232584,-227.23,0.00025459,2]
[357242088,1743934232593,-250.0,0.00025992,2]
[357242089,1743934232603,-227.23,0.00026829,2]
[357242090,1743934232612,-168.02,0.00026849,2]
[357242091,1743934232621,-169.12,0.00026849,2]
[357242092,1743934232631,-206.89,0.00026849,2]
[357242093,1743934232640,-1000.0,0.00026974,2]
[357242094,1743934232649,-450.0,0.00027,2]
[357242095,1743934232658,-487.53138383,0.00027231,2]
[357242096,1743934232667,-564.08,0.00027538,2]
[357242097,1743934232677,-50367.19857383,0.00027632,2]
[357242098,1743934232686,-212.97818639,0.000289,2]
[357242099,1743934232696,-500.0,0.00029,2]
[357242100,1743934232705,-564.08,0.00029802,2]
[357242101,1743934232715,-1000.0,0.00029971,2]
[357242102,1743934232725,-481.08274452,0.00030252,5]
[357242103,1743934232738,-505.0,0.0003063,2]
[357242104,1743934232747,-388.0,0.00030685,2]
[357242105,1743934232756,-487.53138383,0.00030897,2]
[357242106,1743934232765,-550.0,0.00031,2]
[357242107,1743934232775,-1110.0,0.00031336,5]
[357242108,1743934232784,-150.99,0.00031426,2]
[357242109,1743934232793,-5087.16,0.00031426,2]
[357242110,1743934232803,-248.44,0.00031426,2]
[357242111,1743934232814,-50367.19857383,0.00031498,2]
[357242112,1743934232824,-564.08,0.00032066,2]
[357242113,1743934232833,-178.09473118,0.000324,4]
[357242114,1743934232842,-206.89,0.00032646,2]
[357242115,1743934232851,-737.9,0.00032854,2]
[357242116,1743934232860,-1000.0,0.00032968,2]
[357242117,1743934232870,-600.0,0.00033,2]
[357242118,1743934232880,-5037.0,0.000343,3]
[357242119,1743934232890,-564.08,0.00034329,2]
[357242120,1743934232899,-487.53138383,0.00034562,2]
[357242121,1743934232908,-650.0,0.00035,2]
[357242122,1743934232917,-160.49,0.00035,2]
[357242123,1743934232927,-5556.0,0.00035,5]
[357242124,1743934232936,-50367.19857383,0.00035364,2]
[357242125,1743934232947,-151.14,0.00035616,2]
[357242126,1743934232955,-1000.0,0.00035965,2]
[357242127,1743934232965,-564.08,0.00036593,2]
[357242128,1743934232974,-700.0,0.00037,2]
[357242129,1743934232983,-2058.95415303,0.000372,103]
[357242130,1743934232993,-2058.954153,0.000372,103]
[357242131,1743934233003,-1092.73,0.0003741,120]
[357242132,1743934233012,-238.56455006,0.00037787,2]
[357242133,1743934233022,-212.97818639,0.000379,2]
[357242134,1743934233031,-900.0,0.00038,20]
[357242135,1743934233040,-500.0,0.00038143,7]
[357242136,1743934233049,-487.53138383,0.00038228,2]
[357242137,1743934233058,-206.89,0.00038443,2]
[357242138,1743934233068,-564.08,0.00038857,2]
[357242139,1743934233077,-500.0,0.00038909,7]
[357242140,1743934233086,-151.0,0.00038961,14]
[357242141,1743934233095,-151.0,0.00038961,14]
[357242142,1743934233104,-151.0,0.00038961,14]
[357242143,1743934233114,-152.636233,0.00038961,14]
[357242144,1743934233123,-151.0,0.00038961,14]
[357242145,1743934233132,-167.352674,0.00038961,14]
[357242146,1743934233142,-151.0,0.00038961,14]
[357242147,1743934233151,-191.751004,0.00038961,14]
[357242148,1743934233160,-191.751004,0.00038961,14]
[357242149,1743934233170,-151.0,0.00038961,14]
[357242150,1743934233179,-151.0,0.00038961,14]
[357242151,1743934233188,-159.28735,0.00038961,14]
[357242152,1743934233198,-151.0,0.00038961,14]
[357242153,1743934233207,-151.0,0.00038961,14]
[357242154,1743934233217,-151.0,0.00038961,14]
[357242155,1743934233226,-151.0,0.00038961,14]
[357242156,1743934233235,-151.0,0.00038961,14]
[357242157,1743934233244,-400.692135,0.00038961,14]
[357242158,1743934233253,-151.0,0.00038961,14]
[357242159,1743934233268,-400.692135,0.00038961,14]
[357242160,1743934233277,-151.0,0.00038961,14]
[357242161,1743934233287,-1790.12,0.00038979,30]
[357242162,1743934233296,-1000.0,0.00038983,2]
[357242163,1743934233306,-1000.0,0.00038983,4]
[357242164,1743934233315,-1516.20299081,0.00038983,2]
[357242165,1743934233324,-3579.59015841,0.00038983,2]
[357242166,1743934233426,-6955.42576914,0.00038983,2]
[357242168,1743934237335,-563.611564,0.00038961,14]
[357242169,1743934237345,-266.368436,0.00038961,14]
[357242170,1743934237444,-7.364912,0.00038961,14]
[357242171,1743934237454,-273.733348,0.00038961,14]
[357242172,1743934237464,-563.611564,0.00038961,14]
[357242173,1743934237473,-32260.36957065,0.00038983,2]
[357242174,1743934237554,-3319.63338521,0.00038983,2]
[357242175,1743934237566,-4760.95602591,0.00038983,2]
[357242286,1743934239560,-70.26888044,0.00038983,2]
[357242307,1743934242472,-151.0,0.00038961,14]
[357242308,1743934242482,-29077.75487711,0.00038983,2]
[357242310,1743934242491,-35818.04628266,0.00038983,2]
[357242313,1743934242500,-22726.41949142,0.00038983,2]
[357242314,1743934242509,-475.14846703,0.00039199,2]
[357242315,1743934242519,-1000.0,0.000392,2]
[357242316,1743934242528,-1000.0,0.000392,2]
[357242317,1743934242537,-1000.0,0.000392,2]
[357242318,1743934242546,-1000.0,0.000392,2]
[357242319,1743934242555,-1000.0,0.000392,2]
[357242320,1743934242565,-1000.0,0.000392,2]
[357242321,1743934242574,-1000.0,0.000392,2]
[357242322,1743934242583,-1000.0,0.000392,2]
[357242323,1743934242592,-1000.0,0.000392,2]
[357242324,1743934242601,-1000.0,0.000392,2]
[357242325,1743934242611,-1000.0,0.000392,2]
[357242326,1743934242620,-1000.0,0.000392,2]
[357242327,1743934242629,-1000.0,0.000392,2]
[357242328,1743934242638,-1000.0,0.000392,2]
[357242329,1743934242647,-1000.0,0.000392,2]
[357242330,1743934242656,-1000.0,0.000392,2]
[357242331,1743934242666,-1000.0,0.000392,2]
[357242332,1743934242675,-1000.0,0.000392,2]
[357242333,1743934242684,-1000.0,0.000392,2]
[357242334,1743934242693,-1000.0,0.000392,2]
[357242335,1743934242702,-1000.0,0.000392,2]
[357242336,1743934242713,-1000.0,0.000392,2]
[357242337,1743934242722,-1000.0,0.000392,2]
[357242338,1743934242732,-1000.0,0.000392,2]
[357242339,1743934242745,-1000.0,0.000392,2]
[357242340,1743934242754,-1000.0,0.000392,2]
[357242341,1743934242763,-1000.0,0.000392,2]
[357242342,1743934242774,-1000.0,0.000392,2]
[357242343,1743934242783,-1000.0,0.000392,2]
[357242344,1743934242792,-1000.0,0.000392,2]
[357242345,1743934242802,-1000.0,0.000392,2]
[357242346,1743934242812,-1000.0,0.000392,2]
[357242347,1743934242823,-783.73899696,0.000392,2]
[357242348,1743934242833,-1111.31177795,0.00039211,2]
[357242349,1743934242842,-50367.19857383,0.0003923,2]
[357242350,1743934242852,-7124.14676122,0.00039629,2]
[357242351,1743934242862,-202.36480309,0.0003999,3]
[357242352,1743934242871,-33714.58464553,0.0004,30]
[357242353,1743934242881,-966.05790936,0.0004,20]
[357242354,1743934242890,-199036.15079896,0.0004,30]
[357242355,1743934242899,-152.2,0.0004,2]
[357242357,1743934242909,-880.99087457,0.0004,3]
[357242359,1743934242919,-7983.30344335,0.0004,2]
[357242361,1743934242928,-250.461,0.0004,14]
[357242362,1743934242938,-151.0,0.0004,14]
[357242363,1743934242948,-151.0,0.0004,14]
[357242364,1743934242958,-151.0,0.0004,14]
[357242365,1743934242967,-459.433264,0.0004,14]
[357242366,1743934242977,-151.0,0.0004,14]
[357242367,1743934242986,-459.433264,0.0004,14]
[357242368,1743934242995,-151.0,0.0004,14]
[357242369,1743934243006,-151.0,0.0004,14]
[357242370,1743934243015,-214.096914,0.0004,14]
[357242371,1743934243025,-151.0,0.0004,14]
[357242372,1743934243035,-214.096914,0.0004,14]
[357242373,1743934243045,-151.0,0.0004,14]
[357242374,1743934243055,-151.0,0.0004,14]
[357242375,1743934243065,-151.0,0.0004,14]
[357242376,1743934243075,-151.0,0.0004,14]
[357242377,1743934243086,-151.0,0.0004,14]
[357242378,1743934243096,-151.0,0.0004,14]
[357242379,1743934243106,-217.849509,0.0004,14]
[357242380,1743934243116,-151.0,0.0004,14]
[357242381,1743934243127,-158.880147,0.0004,14]
[357242382,1743934243137,-151.0,0.0004,14]
[357242383,1743934243147,-151.0,0.0004,14]
[357242384,1743934243157,-151.0,0.0004,14]
[357242385,1743934243166,-153.331482,0.0004,14]
[357242386,1743934243176,-151.0,0.0004,14]
[357242387,1743934243186,-151.0,0.0004,14]
[357242388,1743934243196,-151.0,0.0004,14]
[357242389,1743934243208,-151.0,0.0004,14]
[357242390,1743934243218,-3982.123745,0.0004,14]
[357242391,1743934243228,-151.0,0.0004,14]
[357242392,1743934243237,-151.0,0.0004,14]
[357242393,1743934243246,-158.374622,0.0004,14]
[357242394,1743934243256,-158.374622,0.0004,14]
[357242395,1743934243265,-158.374622,0.0004,14]
[357242396,1743934243274,-158.374622,0.0004,14]
[357242397,1743934243283,-154.816186,0.0004,14]
[357242398,1743934243292,-151.0,0.0004,14]
[357242399,1743934243302,-280.575915,0.0004,14]
[357242400,1743934243311,-280.575915,0.0004,14]
[357242401,1743934243321,-280.575915,0.0004,14]
[357242402,1743934243330,-280.575915,0.0004,14]
[357242403,1743934243339,-151.0,0.0004,14]
[357242404,1743934243348,-151.0,0.0004,14]
[357242405,1743934243358,-152.511849,0.0004,14]
[357242406,1743934243367,-191.751004,0.0004,14]
[357242407,1743934243376,-191.751004,0.0004,14]
[357242408,1743934243386,-151.0,0.0004,14]
[357242409,1743934243395,-151.0,0.0004,14]
[357242410,1743934243405,-161.753088,0.0004,14]
[357242411,1743934243415,-151.0,0.0004,14]
[357242412,1743934243425,-151.0,0.0004,14]
[357242413,1743934243434,-151.0,0.0004,14]
[357242414,1743934243444,-151.0,0.0004,14]
[357242415,1743934243455,-400.692135,0.0004,14]
[357242416,1743934243464,-154.971838,0.0004,14]